[Event "SixDays Budapest January-GM 2023"]
[Site "Budapest"]
[Date "2023.01.26"]
[Round "6.3"]
[White "Chen, Qi b"]
[Black "Lucas, Arthur"]
[Result "1/2-1/2"]
[ECO "B40"]
[WhiteElo "2484"]
[BlackElo "2412"]
[Annotator "TA"]
[PlyCount "33"]
[EventDate "2023.01.23"]
[EventType "tourn"]
[EventCountry "HUN"]
[SourceTitle "playchess.com"]
[Source "ChessBase"]
[SourceQuality "1"]
[TimeControl "5400+30"]

{[%evp 11,33,0,16,8,16,15,23,19,23,19,24,28,29,29,29,16,21,18,22,16,8,0,0,0]} 1. e4 {[%emt 0:00:02]} c5 {[%emt 0:00:08]} 2. Nf3 {[%emt 0:00:12]} e6 {[%emt 0:00:16]} 3. d4 {[%emt 0:00:31]} cxd4 {[%emt 0:00:10]} 4. Nxd4 {[%emt 0:00:04]} Nf6 {[%emt 0:00:11]} 5. Nc3 {[%emt 0:00:55]} Nc6 {[%emt 0:00:10]} 6. a3 {[%emt 0:03:15]} d6 {[%emt 0:00:24]} 7. g3 {[%emt 0:05:58] B45: Sicilian Four Knights.} Be7 {[%emt 0:11:46]} 8. Bg2 {[%emt 0:00:14] [#]} Nxd4 $146 {[%emt 0:00:49]} ({Predecessor:} 8... O-O 9. O-O Bd7 10. Nxc6 Bxc6 11. a4 Qc7 12. Re1 Nd7 13. Nb5 Qb8 14. Nd4 Qc7 {0-1 Carlsen,M (2859)-Gukesh,D (2725) Speed Chess Chess.com INT blitz 2022 (1.22)}) 9. Qxd4 {[%emt 0:00:08] White has an edge.} O-O {[%emt 0:00:05]} 10. O-O {[%emt 0:08:33]} e5 {[%emt 0:02:37]} 11. Qd3 {[%emt 0:01:28]} Be6 {[%emt 0:02:24]} 12. b3 {[%emt 0:12:49]} Rc8 {[%emt 0:02:37]} 13. a4 {[%emt 0:01:55]} Qc7 {[%emt 0:06:09] The position is equal.} 14. Bb2 {[%emt 0:03:51]} Rfd8 {[%emt 0:03:02]} 15. Rac1 {[%emt 0:03:58]} Qc5 {[%emt 0:04:03]} 16. Rcd1 {[%emt 0:13:55]} a6 {[%emt 0:15:14]} 17. Rd2 {[%emt 0:01:51] A rather calm draw.   Weighted Error Value: White=0.03 (flawless) /Black=0.04 (flawless)} 1/2-1/2

[Event "SixDays Budapest January-GM 2023"]
[Site "Budapest"]
[Date "2023.01.26"]
[Round "6.4"]
[White "Nagy, Gabor"]
[Black "Kozak, Adam"]
[Result "1/2-1/2"]
[ECO "A13"]
[WhiteElo "2499"]
[BlackElo "2558"]
[Annotator "TA"]
[PlyCount "22"]
[EventDate "2023.01.23"]
[EventType "tourn"]
[EventCountry "HUN"]
[SourceTitle "playchess.com"]
[Source "ChessBase"]
[SourceQuality "1"]
[TimeControl "5400+30"]

{[%evp 9,22,26,26,27,21,24,24,11,22,0,0,0,0,-5,-11]} 1. c4 {[%emt 0:00:05]} e6 {[%emt 0:07:18]} 2. Nc3 {[%emt 0:00:09]} d5 {[%emt 0:00:58]} 3. d4 {[%emt 0:00:11]} Bb4 {[%emt 0:00:51]} 4. cxd5 {[%emt 0:01:53]} exd5 {[%emt 0:00:58]} 5. Bf4 {[%emt 0:00:09]} Nf6 {[%emt 0:02:39]} 6. e3 {[%emt 0:00:16] D31: Queen's Gambit Declined: Semi-Slav without ...Nf6 (+ Marshall Gambit and Noteboom) and Exchange Variation lines without ...Nf6.} O-O {[%emt 0:02:08]} 7. Bd3 {[%emt 0:00:21]} Re8 {[%emt 0:04:36]} 8. Nge2 {[%emt 0:00:46]} c6 {[%emt 0:05:40] The position is equal.} 9. O-O {[%emt 0:00:13]} Nh5 {[%emt 0:09:48] [#]} 10. Qc2 $146 {[%emt 0:01:06]} ({Predecessor:} 10. a3 Nxf4 11. Nxf4 Bd6 12. Qh5 g6 13. Qf3 Qf6 14. Nfe2 Qh4 15. g3 Bg4 16. Qxf7+ Kxf7 17. gxh4 {½-½ Dassanayake,D (1862)-Peiris,T (1985) SRI-chB Colombo 2016 (6)}) 10... g6 {[%emt 0:02:17]} 11. Bh6 {[%emt 0:04:31]} Nd7 {Not much happened in this game.   Weighted Error Value: White=0.03 (flawless) /Black=0.02 (flawless)} 1/2-1/2

[Event "SixDays Budapest January-GM 2023"]
[Site "Budapest"]
[Date "2023.01.26"]
[Round "6.5"]
[White "Hacker, Jonas"]
[Black "Ghazarian, Kirk"]
[Result "1-0"]
[ECO "B30"]
[WhiteElo "2446"]
[BlackElo "2466"]
[Annotator "TA"]
[PlyCount "83"]
[EventDate "2023.01.23"]
[EventType "tourn"]
[EventCountry "HUN"]
[SourceTitle "playchess.com"]
[Source "ChessBase"]
[SourceQuality "1"]
[TimeControl "5400+30"]

{[%evp 10,83,34,28,32,21,45,45,48,44,53,0,22,14,7,18,47,41,39,35,55,55,55,55,55,55,78,57,61,59,85,83,95,56,79,71,106,-26,0,0,0,0,0,0,0,0,0,0,47,46,51,0,0,0,0,0,0,0,0,0,0,0,18,21,174,187,156,65,5265,2583,29986,29987,29987,29988,29993,29994]} 1. e4 {[%emt 0:00:03]} c5 {[%emt 0:00:29]} 2. Nf3 {[%emt 0:00:03]} Nc6 {[%emt 0:00:11]} 3. Bb5 {[%emt 0:00:11]} e6 {[%emt 0:00:46]} 4. O-O {[%emt 0:00:42]} Nge7 {[%emt 0:00:21]} 5. d4 {[%emt 0:00:41]} cxd4 {[%emt 0:01:08]} 6. Nxd4 {[%emt 0:00:09]} Ng6 {[%emt 0:01:12] is currently scoring better than 6...Qb6. B30: Sicilian: 2...Nc6 3 Bb5, lines without ...g6.} 7. Be2 {[%emt 0:04:27]} Qc7 {[%emt 0:00:41]} 8. c4 {[%emt 0:02:57] [#]} Nxd4 $146 {[%emt 0:00:12] White is slightly better.} ({Predecessor:} 8... a6 9. Nxc6 dxc6 10. f4 Bc5+ 11. Kh1 O-O 12. e5 f6 13. exf6 gxf6 14. Nd2 f5 {½-½ Kobalia,M (2614)-Lautier,J (2658) Razuvaev Memorial online blitz 2020 (5)}) 9. Qxd4 {[%emt 0:00:04]} Bd6 {[%emt 0:00:08]} 10. h3 {[%emt 0:09:10]} (10. g3 $14) 10... O-O {[%emt 0:01:07]} 11. Be3 {[%emt 0:02:23]} b6 {[%emt 0:05:34]} 12. Nc3 {[%emt 0:01:41] Nb5 would be deadly.} Bc5 {[%emt 0:01:58]} 13. Qd2 {[%emt 0:01:10]} Bb7 {[%emt 0:16:24]} 14. Rad1 {[%emt 0:05:29]} Bc6 {[%emt 0:22:01]} 15. Bxc5 {[%emt 0:05:32]} bxc5 {[%emt 0:00:02]} 16. f4 {[%emt 0:00:38]} f6 {[%emt 0:05:24]} 17. Qe3 {[%emt 0:07:11]} d6 {[%emt 0:11:36]} 18. Bg4 {[%emt 0:04:42]} (18. f5 exf5 19. exf5 Ne5 $11) 18... Qe7 {[%emt 0:01:17]} 19. Bh5 {[%emt 0:06:27]} Nh8 {[%emt 0:02:01]} 20. e5 {[%emt 0:14:04]} dxe5 {[%emt 0:03:56]} 21. fxe5 {[%emt 0:00:10]} f5 {[%emt 0:01:01]} 22. Rd6 {[%emt 0:06:28] Repels Rfd8} Rac8 {[%emt 0:00:25]} 23. Rfd1 {[%emt 0:01:12] White is much more active.} (23. Qxc5 $2 Bxg2 24. Qe3 Bxf1 25. Kxf1 Rxc4 $19) (23. Ne2 $1 $16) 23... g6 {[%emt 0:03:16]} 24. Bf3 {[%emt 0:01:29]} Bxf3 {[%emt 0:00:24]} 25. Qxf3 {[%emt 0:01:29]} Rfd8 {[%emt 0:04:24] Prevents Rd7.} 26. Qe3 {[%emt 0:08:04][%cal Oe3c5]} Nf7 {[%emt 0:00:45]} 27. Rxd8+ {[%emt 0:00:26]} Rxd8 {[%emt 0:00:31]} 28. Rxd8+ {[%emt 0:00:15]} Nxd8 $11 {[%emt 0:00:06][%mdl 4096] Endgame KQN-KQN} (28... Qxd8 $11 {is superior.} 29. b3 (29. Qxc5 Qd2 $11) 29... Qc7) 29. Na4 $14 {[%emt 0:01:31]} Nb7 {[%emt 0:00:06] [#]} 30. b4 {[%emt 0:06:19]} cxb4 $11 {[%emt 0:01:10] Strongly threatening ...Na5.} 31. Qxa7 {[%emt 0:00:47]} Qd7 {[%emt 0:00:35]} 32. c5 {[%emt 0:03:07]} Qd4+ {[%emt 0:00:27]} 33. Kh2 {[%emt 0:02:34]} Qxe5+ {[%emt 0:00:07]} 34. Kh1 {[%emt 0:00:21]} Qc7 {[%emt 0:13:57]} 35. Nb2 {[%emt 0:01:21]} Qc6 {[%emt 0:02:38]} (35... Qxc5 36. Qb8+ (36. Qxb7 Qc1+ 37. Kh2 Qxb2 $11) 36... Kg7 37. Qxb7+ Kh6 38. Nd3 $16) 36. Nd3 {[%emt 0:01:07][%mdl 1024] Hoping for Qb8+. White has compensation.} Qe4 $2 {[%emt 0:00:13]} (36... Qd5 $11) 37. Qb8+ $18 {[%emt 0:01:30]} Kg7 {[%emt 0:01:48] [#]} 38. Qc7+ {[%emt 0:00:17]} ({Better is} 38. Ne5 $1 $16 Nxc5 39. Qc7+ Kf6 40. Nc6 (40. Qxc5 $2 Qe1+ 41. Kh2 Qxe5+ 42. Qxe5+ Kxe5 $19)) 38... Kf6 $2 {[%emt 0:00:35][%mdl 8192]} (38... Kh6 $14) 39. c6 $1 {[%emt 0:00:35][%cal Bc5c6,Bc6c7][%mdl 32]} (39. Qxh7 Qxd3 40. Qxb7 Qf1+ 41. Kh2 Qf4+ 42. Kh1 Qc1+ 43. Kh2 Qf4+ 44. Kg1 Qe3+ 45. Kh1 Qc1+ 46. Kh2 Qxc5 $19) 39... Na5 {[%emt 0:00:20]} 40. Qd8+ {[%emt 0:00:34] White mates.} ({Not} 40. Qxa5 Qxd3 41. Qxb4 Qe3 $11) 40... Kf7 {[%emt 0:00:15]} 41. c7 {[%emt 0:00:40]} ({Worse is} 41. Qxa5 Qxd3 42. Qa7+ (42. Qxb4 Qe3 $11) 42... Kf6 $11) 41... Nb7 {[%emt 0:00:56]} 42. Qd7+ {[%emt 0:00:14][%mdl 64] Skewer.   Weighted Error Value: White=0.13 (very precise) /Black=0.26 (precise)} 1-0

[Event "SixDays Budapest January-GM 2023"]
[Site "Budapest"]
[Date "2023.01.27"]
[Round "7.1"]
[White "Ghazarian, Kirk"]
[Black "Pajeken, Jakob Leon"]
[Result "1/2-1/2"]
[ECO "D27"]
[WhiteElo "2466"]
[BlackElo "2449"]
[Annotator "TA"]
[PlyCount "120"]
[EventDate "2023.01.23"]
[EventType "tourn"]
[EventCountry "HUN"]
[SourceTitle "playchess.com"]
[Source "ChessBase"]
[SourceQuality "1"]
[TimeControl "5400+30"]

{[%evp 11,120,24,35,16,23,15,33,8,4,3,16,1,12,15,24,16,33,6,16,6,10,16,30,20,20,28,25,29,47,46,45,38,104,104,104,104,95,104,104,103,102,103,98,103,109,108,108,109,187,192,193,179,192,184,188,190,202,207,165,147,374,372,384,370,368,147,364,362,360,332,338,329,311,289,264,153,147,140,160,171,275,104,295,286,312,305,12827,12831,12832,12833,12832,12831,12832,0,0,0,0,0,0,0,0,0,0,0,0,0,0,0,0,0,0]} 1. d4 {[%emt 0:00:08]} d5 {[%emt 0:00:08]} 2. c4 {[%emt 0:00:12]} dxc4 {[%emt 0:00:04]} 3. Nf3 {[%emt 0:00:10]} Nf6 {[%emt 0:00:20]} 4. e3 {[%emt 0:00:09]} e6 {[%emt 0:00:03]} 5. Bxc4 {[%emt 0:00:13]} c5 {[%emt 0:00:03]} 6. O-O {[%emt 0:00:16]} a6 {[%emt 0:00:03]} 7. Be2 {[%emt 0:00:44] 7.b3 is the modern continuation. D27: Queen's Gambit Accepted: Classical main line: 7 e4!? and 7 a4.} Nbd7 {[%emt 0:00:50]} 8. Nbd2 {[%emt 0:00:26]} b6 {[%emt 0:00:27]} 9. dxc5 {[%emt 0:01:51] White is slightly better.} Bxc5 {[%emt 0:02:02]} 10. Nc4 {[%emt 0:00:40] [#]} Qc7 $146 {[%emt 0:18:40] Prevents Nd6+} ({Predecessor:} 10... O-O 11. Nd6 a5 12. Nxc8 Rxc8 13. b3 Qe7 14. a3 Rfd8 15. Bb2 Bd6 16. Ba6 Rc7 {1-0 Narayanan,S (2663)-Andersen,M (2604) Fagernes Autumn op 2022 (8)}) 11. Bd2 {[%emt 0:05:05]} a5 {[%emt 0:05:30]} 12. a3 {[%emt 0:16:27]} a4 {[%emt 0:05:20]} 13. Bb4 {[%emt 0:12:04]} O-O {[%emt 0:03:10]} 14. Bxc5 {[%emt 0:00:57]} Nxc5 {[%emt 0:00:48]} 15. Qd6 {[%emt 0:00:21]} Qxd6 {[%emt 0:01:45]} 16. Nxd6 {[%emt 0:00:03]} Nb3 {[%emt 0:02:15]} 17. Rad1 {[%emt 0:00:35]} Ba6 {[%emt 0:04:34]} 18. Bxa6 {[%emt 0:02:30]} Rxa6 {[%emt 0:00:03]} 19. Nd4 {[%emt 0:00:40]} Nxd4 {[%emt 0:04:58]} 20. Rxd4 {[%emt 0:00:04]} Rd8 {[%emt 0:00:51]} 21. Rc1 {[%emt 0:02:29]} Ra7 {[%emt 0:07:31]} (21... h6 $14) 22. Nc8 $16 {[%emt 0:06:18][%mdl 64] Discovered Attack. White is more active.} Rxd4 {[%emt 0:05:20]} 23. exd4 {[%emt 0:00:03][%mdl 4096] Endgame KRN-KRN} Ra6 {[%emt 0:01:58] [#]} 24. Nxb6 $1 {[%emt 0:00:34][%mdl 64] White wants to mate with Rc8+. Back Rank, Clearance} g5 {[%emt 0:02:07]} 25. Rc8+ {[%emt 0:09:57]} Kg7 {[%emt 0:00:04]} 26. Nc4 {[%emt 0:02:56]} Ra7 {[%emt 0:01:17]} 27. g3 {[%emt 0:03:56]} Rd7 {[%emt 0:01:07]} 28. Ne5 {[%emt 0:05:35]} Rxd4 {[%emt 0:05:11]} 29. Rc7 {[%emt 0:00:06]} Ng4 {[%emt 0:00:34]} (29... Rd5 $16 30. Rxf7+ (30. Nxf7 Kg6 $16) 30... Kg8) 30. Nxf7 $18 {[%emt 0:03:00]} (30. Rxf7+ $2 {too greedy.} Kg8 31. Rb7 (31. Rd7 $2 Nxe5 32. Rxd4 Nf3+ 33. Kg2 Nxd4 $19) 31... Nxe5 $19) 30... Kg6 {[%emt 0:01:07]} 31. h3 {[%emt 0:01:31]} Nf6 {[%emt 0:01:12]} 32. Ne5+ {[%emt 0:00:44]} Kf5 {[%emt 0:00:50]} 33. Nf3 {[%emt 0:00:35]} Rd1+ {[%emt 0:01:57]} 34. Kg2 {[%emt 0:00:01]} h5 {[%emt 0:03:41]} 35. Rg7 {[%emt 0:06:59]} g4 {[%emt 0:06:17]} (35... Ne4 $16 {might work better.} 36. Ra7 Nc5) 36. Rg5+ {[%emt 0:01:26]} Ke4 {[%emt 0:00:04]} 37. hxg4 {[%emt 0:01:36]} hxg4 {[%emt 0:01:21]} 38. Re5+ {[%emt 0:00:24]} Kd3 {[%emt 0:00:01] [#]} 39. Nh2 {[%emt 0:02:33]} Rd2 {[%emt 0:01:09]} 40. Rxe6 {[%emt 0:02:59]} Ne4 {[%emt 0:00:17] Repels Rd6+} 41. Nxg4 {[%emt 0:00:11]} Rxb2 {[%emt 0:00:09]} 42. Ra6 {[%emt 0:01:54]} Nc3 {[%emt 0:02:39]} 43. Ne5+ {[%emt 0:05:28]} (43. Nf6 $18) 43... Kd4 $16 {[%emt 0:01:11]} 44. Nf3+ {[%emt 0:00:23]} Kd5 {[%emt 0:02:08]} 45. Ra5+ {[%emt 0:02:41]} Rb5 {[%emt 0:02:47] [#]} (45... Kc4 $142) 46. Ra7 $2 {[%emt 0:01:13]} (46. Ra8 $1 $18 {and the rest is easy.}) 46... Rb2 $2 {[%emt 0:01:56]} (46... Rb3 $16) 47. Rd7+ $18 {[%emt 0:01:14]} Ke6 {[%emt 0:00:40]} 48. Rd2 {[%emt 0:00:56]} Rxd2 $2 {[%emt 0:01:36]} (48... Rb6 49. g4 Kf7 50. Rd7+ Kg6) 49. Nxd2 {[%emt 0:00:02] KN-KN} Kd5 {[%emt 0:00:05]} 50. g4 {[%emt 0:02:21]} Nb5 {[%emt 0:00:12]} 51. Nb1 {[%emt 0:01:06]} Ke4 {[%emt 0:00:11]} 52. g5 $2 {[%emt 0:00:11]} (52. Kg3 $18 Ke5 53. f3) 52... Kf5 $11 {[%emt 0:00:19] The position is equal.} 53. f4 {[%emt 0:00:58]} Nd4 {[%emt 0:01:41]} 54. Nc3 {[%emt 0:00:10] aiming for Kg3.} Nc2 {[%emt 0:02:39]} 55. Kf3 {[%emt 0:01:18]} ({Much less strong is} 55. Nxa4 $6 Nxa3 56. Kg3 Nc2 $16) 55... Nxa3 {[%emt 0:00:09]} 56. Nxa4 {[%emt 0:00:08] Nc3 is the strong threat.} Nb5 {[%emt 0:00:25] Prevents Nc3.} 57. Nc5 {[%emt 0:00:29] And now Nb3 would win.} Nd4+ {[%emt 0:02:09]} 58. Ke3 {[%emt 0:00:02]} Nc2+ {[%emt 0:00:32]} 59. Kd2 {[%emt 0:01:17]} Nb4 {[%emt 0:00:41]} 60. Nd3 {[%emt 0:00:38]} Nd5 {[%emt 0:00:05] Black escapes into a draw.   Weighted Error Value: White=0.16 (very precise) /Black=0.19 (very precise)} 1/2-1/2

[Event "SixDays Budapest January-GM 2023"]
[Site "Budapest"]
[Date "2023.01.27"]
[Round "7.2"]
[White "Kozak, Adam"]
[Black "Hacker, Jonas"]
[Result "1/2-1/2"]
[ECO "B48"]
[WhiteElo "2558"]
[BlackElo "2446"]
[Annotator "TA"]
[PlyCount "129"]
[EventDate "2023.01.23"]
[EventType "tourn"]
[EventCountry "HUN"]
[SourceTitle "playchess.com"]
[Source "ChessBase"]
[SourceQuality "1"]
[TimeControl "5400+30"]

{[%evp 14,129,29,20,31,0,75,74,74,74,74,69,75,74,101,66,77,85,102,96,93,90,97,94,105,97,93,93,91,71,72,57,86,86,86,86,86,71,102,80,87,86,86,56,89,86,86,28,77,0,87,0,98,60,70,50,70,67,89,68,73,29,38,29,41,0,49,14,61,13,61,61,61,61,65,69,71,41,41,41,41,41,58,48,48,48,99,37,63,20,22,20,25,0,0,0,0,0,0,0,0,0,0,0,0,0,0,0,0,0,0,0,0,0,0,0,0,0]} 1. e4 {[%emt 0:04:14]} c5 {[%emt 0:00:23]} 2. Nf3 {[%emt 0:00:47]} e6 {[%emt 0:00:30]} 3. d4 {[%emt 0:00:11]} cxd4 {[%emt 0:00:05]} 4. Nxd4 {[%emt 0:00:08]} Nc6 {[%emt 0:00:24]} 5. Nc3 {[%emt 0:00:31]} Qc7 {[%emt 0:00:21]} 6. Be3 {[%emt 0:00:16]} a6 {[%emt 0:00:09]} 7. a3 {[%emt 0:00:05]} b5 {[%emt 0:01:43]} 8. Nxc6 {[%emt 0:00:10]} Qxc6 {[%emt 0:00:58] B48: Sicilian: Taimanov: 5 Nc3 Qc7 6 Be3 a6 without Be2.} 9. h4 {[%emt 0:00:16] [#]} b4 $146 {[%emt 0:06:08]} (9... Nf6 $11) ({Predecessor:} 9... Bb7 10. h5 h6 11. Bd3 Rc8 12. Rh3 Nf6 13. Kf1 Bc5 14. Qe2 O-O 15. Rd1 d6 16. Kg1 {½-½ Giri,A (2764)-Matlakov,M (2685) Titled Tuesday intern op 17th Nov blitz 2020 (8)}) 10. axb4 $16 {[%emt 0:00:18]} Bxb4 {[%emt 0:00:10] White is better.} 11. Qd4 {[%emt 0:00:05][%csl LRb4,LRg7] Inhibits Nf6.} Bxc3+ {[%emt 0:01:02]} 12. Qxc3 {[%emt 0:10:37]} Qxc3+ {[%emt 0:00:29]} 13. bxc3 {[%emt 0:00:06]} Nf6 {[%emt 0:08:52] Black is weak on the dark squares} 14. Bd3 {[%emt 0:08:45]} Bb7 {[%emt 0:08:10]} 15. f3 {[%emt 0:01:16]} O-O {[%emt 0:03:43]} 16. Kd2 {[%emt 0:14:04]} a5 {[%emt 0:05:18]} 17. Bb5 {[%emt 0:03:12]} Rfc8 {[%emt 0:04:18]} 18. Rhb1 {[%emt 0:13:20]} Bc6 {[%emt 0:02:57]} 19. c4 {[%emt 0:04:03]} Ne8 {[%emt 0:05:46]} 20. Kd3 {[%emt 0:03:26] White is more active.} f6 {[%emt 0:02:59]} 21. Ra4 {[%emt 0:11:12]} Nd6 {[%emt 0:03:10]} 22. Bd2 {[%emt 0:03:19]} Kf7 {[%emt 0:10:01]} 23. Rxa5 {[%emt 0:10:30]} (23. Bxa5 $2 {too greedy.} Bxb5 24. Rxb5 (24. cxb5 $2 {perishes.} Nb7 $19) 24... Nxb5 25. cxb5 Ra7 $19) 23... Rxa5 {[%emt 0:12:53]} 24. Bxa5 {[%emt 0:00:58]} h5 {[%emt 0:02:17]} 25. Rb3 {[%emt 0:02:00]} Ke8 {[%emt 0:03:13]} 26. Bc3 {[%emt 0:06:43]} Kf7 {[%emt 0:03:35]} 27. Bd4 {[%emt 0:00:25]} e5 {[%emt 0:05:05]} 28. Be3 {[%emt 0:01:02]} Ke8 {[%emt 0:00:39]} 29. Bf2 {[%emt 0:01:11]} Kf7 {[%emt 0:00:22]} 30. Bb6 {[%emt 0:01:00]} (30. Bxc6 $16 Rxc6 31. Rb4) 30... Ke8 {[%emt 0:01:34]} (30... f5 $11) 31. Bf2 {[%emt 0:01:11]} Kf7 $1 {[%emt 0:00:08]} 32. Be3 {[%emt 0:00:27]} Ke8 $1 {[%emt 0:00:08]} 33. Bd2 {[%emt 0:00:38]} Kf7 {[%emt 0:00:23]} 34. Bc1 {[%emt 0:00:13][%cal Bd2c1,Bc1a3,Ba3b4][%mdl 32]} Ke6 {[%emt 0:03:15]} 35. Ba3 {[%emt 0:00:22]} Ne8 {[%emt 0:01:48]} 36. Bb4 {[%emt 0:00:38]} Nd6 {[%emt 0:02:01]} 37. Bxc6 {[%emt 0:00:46]} Rxc6 {[%emt 0:00:40][%mdl 4096] Endgame KRB-KRN} 38. c5 {[%emt 0:00:31]} Nb7 {[%emt 0:02:01]} 39. Kc4 {[%emt 0:00:31]} Rc8 {[%emt 0:00:25]} (39... Nd6+ $1 $11 {is more appropriate.} 40. Kd3 Nb7) 40. Ra3 {[%emt 0:00:32]} Nd8 {[%emt 0:01:17]} (40... d6 $11 {was preferrable.}) 41. Bd2 {[%emt 0:00:29]} (41. Ra1 $14) 41... Nc6 {[%emt 0:00:22]} (41... d6 $11) 42. Be3 {[%emt 0:00:30]} Rb8 {[%emt 0:00:22]} 43. Ra1 {[%emt 0:00:22] Repels Rb1} Rb4+ {[%emt 0:00:29]} 44. Kc3 {[%emt 0:00:01]} Rb8 {[%emt 0:00:13]} 45. g3 {[%emt 0:00:24]} Rg8 {[%emt 0:01:10]} 46. Kd3 {[%emt 0:00:52]} Rb8 {[%emt 0:00:37]} 47. Kd2 {[%emt 0:00:38]} Rc8 {[%emt 0:00:10]} 48. c3 {[%emt 0:00:44]} Rb8 {[%emt 0:00:10]} 49. Kc2 {[%emt 0:00:02]} Rb7 {[%emt 0:00:52]} (49... Rc8 $14) 50. f4 {[%emt 0:00:44]} ({White should try} 50. Ra8 $16) 50... Rb8 {[%emt 0:01:04]} 51. fxe5 {[%emt 0:00:39]} Nxe5 {[%emt 0:00:40]} 52. Ra6+ {[%emt 0:00:28]} Nc6 $1 {[%emt 0:00:10]} 53. Bf4 {[%emt 0:00:20]} Rg8 {[%emt 0:00:06] The position is equal.} 54. Ra1 {[%emt 0:00:46]} g5 {[%emt 0:00:29]} 55. hxg5 {[%emt 0:00:29]} fxg5 {[%emt 0:00:02]} 56. Bc7 {[%emt 0:00:31]} h4 {[%emt 0:00:32]} 57. Rh1 {[%emt 0:00:30]} Rh8 {[%emt 0:01:00]} 58. gxh4 {[%emt 0:00:23]} gxh4 {[%emt 0:00:18]} 59. Rh3 {[%emt 0:00:35]} Ne5 {[%emt 0:00:26]} 60. Kd2 {[%emt 0:00:28]} Rh5 {[%emt 0:00:44]} 61. Ke3 {[%emt 0:00:35]} Ng4+ {[%emt 0:00:38][%mdl 64] [#] Discovered Attack} 62. Kf3 {[%emt 0:00:27]} Rxc5 {[%emt 0:00:49]} 63. Kxg4 {[%emt 0:00:21]} Rxc7 {[%emt 0:00:02]} 64. Rxh4 {[%emt 0:00:36]} Rxc3 {[%emt 0:00:04]} 65. Kf4 {Weighted Error Value: White=0.15 (very precise) /Black=0.11 (very precise)} 1/2-1/2

[Event "SixDays Budapest January-GM 2023"]
[Site "Budapest"]
[Date "2023.01.27"]
[Round "7.3"]
[White "Lucas, Arthur"]
[Black "Nagy, Gabor"]
[Result "1/2-1/2"]
[ECO "C26"]
[WhiteElo "2412"]
[BlackElo "2499"]
[Annotator "TA"]
[PlyCount "28"]
[EventDate "2023.01.23"]
[EventType "tourn"]
[EventCountry "HUN"]
[SourceTitle "playchess.com"]
[Source "ChessBase"]
[SourceQuality "1"]
[TimeControl "5400+30"]

{[%evp 9,28,-12,8,2,18,9,6,9,22,16,54,49,47,46,42,47,45,41,42,51,62]} 1. e4 {[%emt 0:00:04]} e5 {[%emt 0:00:35]} 2. Nc3 {[%emt 0:00:45]} Nf6 {[%emt 0:00:41]} 3. d4 {[%emt 0:00:48]} exd4 {[%emt 0:00:44]} 4. Qxd4 {[%emt 0:00:05]} Nc6 {[%emt 0:00:30]} 5. Qd3 {[%emt 0:00:05]} d5 {[%emt 0:02:33]} 6. Bf4 {[%emt 0:00:26][%cal Re4d5,Bc1f4,Bf4d2,Bd2c3][%mdl 32] C26: Vienna Game: 2...Nf6, sidelines .} d4 {[%emt 0:06:40]} 7. Nb5 {[%emt 0:04:53]} Bb4+ {[%emt 0:00:28]} 8. c3 {[%emt 0:03:23] [#] The position is equal.} Ba5 $146 {[%emt 0:00:21] [#] Threatens to win with ...a6.} ({Predecessor:} 8... dxc3 9. Qxd8+ Kxd8 10. bxc3 Ba5 11. O-O-O+ Bd7 12. f3 a6 13. Nd4 Nxd4 14. cxd4 Ba4 15. Rd3 Bb5 16. Rd1 Ba4 17. Rd3 Bb5 18. Rd1 {½-½ Safarli,E (2589)-Areshchenko,A (2670) EU-ch 22nd Terme Catez 2022 (8)}) 9. O-O-O $1 {[%emt 0:03:12][%cal Rb5d4]} Nh5 {[%emt 0:05:32]} 10. Bd2 {[%emt 0:03:48][%cal Rb5d4] White is slightly better.} dxc3 {[%emt 0:01:44]} 11. Qxd8+ {[%emt 0:03:36]} Nxd8 {[%emt 0:00:16]} 12. Bxc3 {[%emt 0:00:06]} (12. bxc3 O-O $11) 12... Bb6 {[%emt 0:00:20]} (12... Bxc3 $2 13. Nxc7+ (13. bxc3 Ne6 $11) (13. Nxc3 O-O $11) 13... Ke7 14. bxc3 $18 (14. Nxa8 Be5 $16)) 13. Ne2 {[%emt 0:28:23]} Ne6 {[%emt 0:02:17]} 14. f3 {[%emt 0:03:10]} Bd7 {[%emt 0:04:56] Weighted Error Value: White=0.01 (flawless) /Black=0.11 (very precise)} 1/2-1/2

[Event "SixDays Budapest January-GM 2023"]
[Site "Budapest"]
[Date "2023.01.27"]
[Round "7.4"]
[White "Can, Isik"]
[Black "Chen, Qi b"]
[Result "1/2-1/2"]
[ECO "C68"]
[WhiteElo "2488"]
[BlackElo "2484"]
[Annotator "TA"]
[PlyCount "25"]
[EventDate "2023.01.23"]
[EventType "tourn"]
[EventCountry "HUN"]
[SourceTitle "playchess.com"]
[Source "ChessBase"]
[SourceQuality "1"]
[TimeControl "5400+30"]

{[%evp 12,25,8,8,4,0,50,37,26,49,39,34,35,0,12,8]} 1. e4 {[%emt 0:03:05]} e5 {[%emt 0:00:09]} 2. Nf3 {[%emt 0:00:09]} Nc6 {[%emt 0:00:05]} 3. Bb5 {[%emt 0:00:04]} a6 {[%emt 0:00:15]} 4. Bxc6 {[%emt 0:00:16]} dxc6 {[%emt 0:00:05]} 5. O-O {[%emt 0:00:05]} Bg4 {[%emt 0:00:37]} 6. h3 {[%emt 0:00:11]} Bh5 {[%emt 0:00:35]} 7. g4 {[%emt 0:00:27]} Bg6 {[%emt 0:00:03] C68: Ruy Lopez: Exchange Variation, sidelines.} 8. Nxe5 {[%emt 0:00:04]} Bd6 $1 {[%emt 0:00:12][%mdl 4] is currently scoring better than 8...Qh4.} (8... Qh4 $11) 9. Nxg6 {[%emt 0:06:57]} hxg6 {[%emt 0:00:05]} 10. Qf3 {[%emt 0:04:14]} Qd7 {[%emt 0:00:14][%cal Of7f5]} 11. d4 {[%emt 0:11:35]} f5 {[%emt 0:03:29] [#]} 12. exf5 $146 {[%emt 0:21:07]} ({Predecessor:} 12. e5 Be7 13. c3 O-O-O 14. g5 Rh5 15. Kh2 Bxg5 16. Bxg5 Rxg5 17. Nd2 Ne7 18. Rg1 {½-½ Kucza,K (2305)-Janik,I (2519) Bydgoszcz op-A 2022 (9)}) 12... gxf5 {[%emt 0:17:14]} 13. Re1+ {[%emt 0:08:10] Weighted Error Value: White=0.09 (flawless) /Black=0.13 (very precise)} ({Much worse is} 13. gxf5 O-O-O 14. Rd1 Rf8 $17) 1/2-1/2